bitfinex/quotes_BTCUSD_20241120
["timestamp","ask_amount","ask_price","bid_price","bid_amount"]
[1732096612175,0.37224455,92952.0,92951.0,0.0004]
[1732096615383,0.38224455,92952.0,92951.0,0.0004]
[1732096615580,0.50636767,92952.0,92951.0,0.0004]
[1732096618065,0.27419,92945.0,92933.0,0.02043599]
[1732096618280,0.50737567,92945.0,92933.0,0.02043599]
[1732096618945,0.35532612,92934.0,92933.0,0.02043599]
[1732096619149,0.34026555,92934.0,92933.0,0.02043599]
[1732096619432,0.107589,92946.0,92933.0,0.02043599]
[1732096619656,0.0752,92956.0,92933.0,0.02043599]
[1732096619657,0.10906255,92953.0,92933.0,0.02043599]
[1732096619850,0.107587,92948.0,92933.0,0.02197931]
[1732096620075,0.10759,92946.0,92934.0,0.096842]
[1732096620253,0.215167,92951.0,92933.0,0.02197931]
[1732096620471,0.10906255,92950.0,92933.0,0.02197931]
[1732096620667,0.023,92946.0,92938.0,0.096838]
[1732096620886,0.023,92944.0,92936.0,0.09684]
[1732096621093,0.023,92944.0,92935.0,0.096841]
[1732096621314,0.023,92946.0,92935.0,0.096841]
[1732096621544,0.023,92946.0,92938.0,0.096838]
[1732096621757,0.023,92943.0,92935.0,0.096841]
[1732096622004,0.107591,92945.0,92934.0,0.00198853]
[1732096622226,0.023,92944.0,92934.0,0.00198853]
[1732096622471,0.023,92944.0,92934.0,0.09883053]
[1732096622917,0.215175,92948.0,92934.0,0.09883053]
[1732096622918,0.215175,92948.0,92938.0,0.096838]
[1732096623114,0.130588,92947.0,92939.0,0.096837]
[1732096623560,0.023,92947.0,92934.0,0.00198853]
[1732096623776,0.023,92946.0,92939.0,0.096837]
[1732096624012,0.023,92946.0,92940.0,0.096835]
[1732096624458,0.217163,92953.0,92934.0,0.00198853]
[1732096624459,0.023,92949.0,92934.0,0.00198853]
[1732096624728,0.023,92949.0,92933.0,0.02043599]
[1732096624729,0.01,92972.0,92960.0,0.096815]
[1732096624931,0.01,92969.0,92945.0,0.00215136]
[1732096625150,0.002,92967.0,92959.0,0.096816]
[1732096625362,0.107566,92966.0,92960.0,0.096815]
[1732096625574,0.10757,92963.0,92956.0,0.096819]
[1732096625782,0.002,92967.0,92958.0,0.096817]
[1732096625999,0.107567,92966.0,92959.0,0.096816]
[1732096626205,0.023,92964.0,92959.0,0.096816]
[1732096626418,0.023,92964.0,92958.0,0.193634]
[1732096626659,0.002,92987.0,92953.0,0.096823]
[1732096626880,0.322632,92985.0,92973.0,0.096801]
[1732096627111,0.107552,92979.0,92970.0,0.096805]
[1732096627343,0.107548,92982.0,92974.0,0.0968]
[1732096627572,0.10906255,92985.0,92977.0,0.096797]
[1732096627807,0.0817,92986.0,92984.0,0.09679]
[1732096628046,0.107544,92985.0,92975.0,0.096799]
[1732096628269,0.002,92984.0,92977.0,0.096798]
[1732096628494,0.002,92984.0,92972.0,0.00085235]
[1732096628724,0.002,92984.0,92980.0,0.096794]
[1732096629351,0.023,92983.0,92980.0,0.096794]
[1732096630114,0.025,92983.0,92977.0,0.096797]
[1732096630348,0.023,92978.0,92976.0,0.096798]
[1732096630566,0.023,92985.0,92977.0,0.096798]
[1732096630798,0.023,92983.0,92978.0,0.096796]
[1732096631030,0.023,92985.0,92979.0,0.096795]
[1732096631488,0.023,92983.0,92977.0,0.096797]
[1732096631713,0.0017104,92990.0,92982.0,0.22091512]
[1732096631938,0.0017104,92990.0,92989.0,0.096785]
[1732096633142,0.0247104,92990.0,92989.0,0.096785]
[1732096634534,0.0247104,92990.0,92989.0,0.196785]
[1732096636917,0.1244,92989.0,92962.0,0.1]
[1732096637153,0.002,92973.0,92959.0,0.096816]
[1732096637400,0.107558,92973.0,92966.0,0.096809]
[1732096637605,0.215103,92979.0,92969.0,0.096806]
[1732096637606,0.107552,92978.0,92969.0,0.096806]
[1732096637837,0.215109,92976.0,92960.0,0.096815]
[1732096638071,0.10756,92971.0,92957.0,0.12412312]
[1732096638292,0.215115,92974.0,92965.0,0.09681]
[1732096638520,0.107554,92976.0,92970.0,0.096804]
[1732096638742,0.10906255,92978.0,92970.0,0.096804]
[1732096638975,0.10906255,92978.0,92959.0,0.096816]
[1732096638976,0.217107,92977.0,92969.0,0.096805]
[1732096639229,0.10906255,92978.0,92969.0,0.096805]
[1732096639663,0.10906255,92978.0,92965.0,0.096809]
[1732096639876,0.10906255,92978.0,92958.0,0.1008552]
[1732096639877,0.215128,92968.0,92958.0,0.0976722]
[1732096640104,0.002,92968.0,92958.0,0.0976722]
[1732096640354,0.002,92968.0,92959.0,0.096816]
[1732096640355,0.107568,92965.0,92959.0,0.096816]
[1732096640580,0.107568,92964.0,92959.0,0.096816]
[1732096640775,0.002,92968.0,92959.0,0.096816]
[1732096640991,0.107566,92966.0,92960.0,0.096814]
[1732096641418,0.107566,92966.0,92961.0,0.096814]
[1732096641640,0.107566,92966.0,92958.0,0.0008552]
[1732096641641,0.119574,92959.0,92958.0,0.0008552]
[1732096641845,0.22863655,92959.0,92958.0,0.0008552]
[1732096649568,0.002,92985.0,92958.0,0.0008552]
[1732096649569,0.01,92983.0,92958.0,0.0008552]
[1732096649772,0.002,92984.0,92983.0,0.096791]
[1732096650014,0.02189041,92984.0,92983.0,0.096791]
[1732096650233,0.107539,92989.0,92981.0,0.096793]
[1732096650473,0.0017104,92990.0,92983.0,0.096791]
[1732096650696,0.0017104,92990.0,92982.0,0.096792]
[1732096650697,0.1092484,92990.0,92981.0,0.096793]
[1732096651125,0.1092484,92990.0,92978.0,0.096796]
[1732096651126,0.107541,92988.0,92978.0,0.096796]
[1732096651327,0.10906255,92987.0,92979.0,0.096795]
[1732096651555,0.10906255,92987.0,92980.0,0.096794]
[1732096651963,0.10906255,92987.0,92981.0,0.096793]
[1732096652196,0.10906255,92987.0,92982.0,0.096792]
[1732096652611,0.10906255,92987.0,92981.0,0.096792]
[1732096652837,0.10906255,92987.0,92982.0,0.096792]
[1732096653032,0.10906255,92987.0,92972.0,0.096803]
[1732096653237,0.21860555,92987.0,92980.0,0.096794]
[1732096653452,0.21660555,92987.0,92981.0,0.096793]
[1732096653664,0.10906255,92987.0,92981.0,0.096793]
[1732096653868,0.10906255,92987.0,92983.0,0.096791]
[1732096654090,0.0017104,92990.0,92987.0,0.1]
[1732096654298,0.0017104,92990.0,92989.0,0.096785]
[1732096665656,0.0017104,92990.0,92985.0,0.12412312]
[1732096665657,0.11077295,92990.0,92970.0,0.1]
[1732096665867,0.15496255,92989.0,92978.0,0.1]
[1732096666098,0.15696255,92989.0,92978.0,0.186041]
[1732096666344,0.107543,92986.0,92979.0,0.08604]
[1732096666561,0.10906255,92985.0,92962.0,0.12412312]
[1732096666779,0.215094,92983.0,92968.0,0.08605]
[1732096667010,0.10906255,92982.0,92962.0,0.12412312]
[1732096667228,0.10906255,92982.0,92973.0,0.086045]
[1732096667470,0.10755,92980.0,92974.0,0.086045]
[1732096667681,0.10906255,92979.0,92974.0,0.086045]
[1732096667892,0.10906255,92979.0,92975.0,0.086044]
[1732096668124,0.10906255,92979.0,92959.0,0.12412312]
[1732096668370,0.107561,92971.0,92959.0,0.12412312]
[1732096668609,0.215111,92975.0,92965.0,0.086053]
[1732096668807,0.215111,92975.0,92965.0,0.172106]
[1732096668808,0.10756,92971.0,92965.0,0.172106]
[1732096669014,0.10906255,92973.0,92966.0,0.086052]
[1732096669256,0.21662055,92973.0,92967.0,0.086051]
[1732096669496,0.012,92983.0,92972.0,0.086047]
[1732096669743,0.21660955,92982.0,92977.0,0.086042]
[1732096669950,0.21661055,92982.0,92977.0,0.086042]
[1732096670209,0.21661055,92982.0,92974.0,0.086045]
[1732096670210,0.10906255,92982.0,92976.0,0.086043]
[1732096670420,0.10906255,92982.0,92974.0,0.086045]
[1732096670421,0.10755,92980.0,92975.0,0.086044]
[1732096670633,0.10906255,92979.0,92974.0,0.086045]
[1732096670867,0.10906255,92979.0,92975.0,0.086044]
[1732096671082,0.10906255,92979.0,92974.0,0.086045]
[1732096671083,0.10906255,92979.0,92978.0,0.086041]
[1732096671767,0.012,92983.0,92979.0,0.08604]
[1732096671972,0.10906255,92982.0,92978.0,0.086041]
[1732096672396,0.10906255,92982.0,92966.0,0.12412312]
[1732096672611,0.0459,92989.0,92974.0,0.12412312]
[1732096672828,0.0459,92989.0,92967.0,0.10215102]
[1732096672829,0.0765,92996.0,92989.0,0.086031]
[1732096673048,0.11288291,92996.0,92989.0,0.086031]
[1732096674646,0.0765,92996.0,92989.0,0.086031]
[1732096675536,0.0765,92996.0,92988.0,0.086032]
[1732096675753,0.0765,92996.0,92989.0,0.086031]
[1732096676173,0.0865,92996.0,92989.0,0.086031]
[1732096676390,0.107533,92995.0,92989.0,0.086031]
[1732096676649,0.0865,92996.0,92989.0,0.086031]
[1732096677100,0.0765,92996.0,92989.0,0.086031]
[1732096677306,0.0765,92996.0,92984.0,0.086035]
[1732096677307,0.215065,92995.0,92986.0,0.086033]
[1732096677523,0.0765,92996.0,92984.0,0.086035]
[1732096677776,0.107539,92989.0,92981.0,0.086038]
[1732096678007,0.107539,92989.0,92983.0,0.086036]
[1732096678234,0.107541,92988.0,92981.0,0.086038]
[1732096678439,0.21507,92993.0,92983.0,0.086036]
[1732096678440,0.1092484,92990.0,92983.0,0.086036]
[1732096678653,0.0017104,92990.0,92982.0,0.086037]
[1732096678865,0.10754,92988.0,92982.0,0.086037]
[1732096679087,0.0017104,92990.0,92982.0,0.086037]
[1732096679293,0.0017104,92990.0,92989.0,0.086031]
[1732096682792,0.0017104,92990.0,92988.0,0.1]
[1732096682793,0.0835104,92990.0,92988.0,0.1]
[1732096683246,0.0835104,92990.0,92987.0,0.086032]
[1732096683488,0.0835104,92990.0,92982.0,0.1]
[1732096683708,0.0835104,92990.0,92984.0,0.1]
[1732096683948,0.0835104,92990.0,92988.0,0.086032]
[1732096684160,0.0835104,92990.0,92986.0,0.1]
[1732096684664,0.10906255,92989.0,92986.0,0.1]
[1732096684912,0.190241,92987.0,92986.0,0.1]
[1732096685147,0.19176255,92987.0,92980.0,0.00022207]
[1732096685377,0.10906255,92986.0,92981.0,0.186038]
[1732096685622,0.107544,92985.0,92981.0,0.1]
[1732096685868,0.297784,92987.0,92980.0,0.00022207]
[1732096685869,0.10906255,92984.0,92982.0,0.1]
[1732096686089,0.10906255,92984.0,92982.0,0.186038]
[1732096686307,0.10906255,92984.0,92982.0,0.1]
[1732096686514,0.10906255,92984.0,92980.0,0.00022207]
[1732096686727,0.107548,92981.0,92980.0,0.00022207]
[1732096686963,0.35201055,92981.0,92980.0,0.00022207]
[1732096687192,0.36401055,92981.0,92980.0,0.00022207]
[1732096687419,0.38398068,92981.0,92980.0,0.00022207]
[1732096689044,0.35401055,92981.0,92980.0,0.00022207]
[1732096689263,0.37397184,92981.0,92980.0,0.00022207]
[1732096690878,0.37396684,92981.0,92980.0,0.00107727]
[1732096692297,0.36725547,92981.0,92980.0,0.00107727]
[1732096694477,0.36725547,92981.0,92980.0,0.00107727]
[1732096694916,0.25619292,92981.0,92980.0,0.00107727]
[1732096695138,0.1354,92981.0,92980.0,0.00107727]
[1732096696956,0.02,92995.0,92980.0,0.00107727]
[1732096696957,0.0017104,92990.0,92989.0,0.207539]
[1732096699097,0.0092374,93000.0,92989.0,0.207539]
[1732096699308,0.10906255,93000.0,92994.0,0.107532]
[1732096699517,0.10906255,93000.0,92990.0,0.1]
[1732096699731,0.10906255,93000.0,92996.0,0.107531]
[1732096699938,0.10906255,93000.0,92991.0,0.107537]
[1732096700152,0.10906255,93000.0,92995.0,0.107532]
[1732096700532,0.10906255,93000.0,92996.0,0.107531]
[1732096701063,0.10906255,93000.0,92996.0,0.10753]
[1732096701288,0.10906255,93000.0,92995.0,0.107232]
[1732096701520,0.21658955,93000.0,92995.0,0.107531]
[1732096701747,0.10906255,93000.0,92996.0,0.10753]
[1732096701926,0.10906255,93000.0,92992.0,0.107535]
[1732096702195,0.10906255,93000.0,92995.0,0.107532]
[1732096702405,0.10906255,93000.0,92990.0,0.1]
[1732096702406,0.10906255,93000.0,92991.0,0.107537]
[1732096702640,0.10906255,93000.0,92994.0,0.107533]
[1732096702863,0.107528,92999.0,92994.0,0.107533]
[1732096703962,0.21658955,93000.0,92994.0,0.107533]
[1732096704172,0.10906255,93000.0,92990.0,0.1]
[1732096704391,0.107529,92998.0,92992.0,0.107536]
[1732096704619,0.10906255,93000.0,92981.0,0.1]
[1732096704853,0.107528,92999.0,92993.0,0.107534]
[1732096705070,0.10906255,93000.0,92993.0,0.107534]
[1732096705280,0.10906255,93000.0,92994.0,0.107533]
[1732096705492,0.21658955,93000.0,92995.0,0.107532]
[1732096706430,0.10906255,93000.0,92993.0,0.107534]
[1732096706657,0.107529,92998.0,92993.0,0.107534]
[1732096707111,0.107528,92999.0,92993.0,0.107534]
[1732096707335,0.107529,92998.0,92993.0,0.107534]
[1732096707568,0.107528,92999.0,92993.0,0.107534]
[1732096707798,0.107529,92998.0,92993.0,0.107534]
[1732096708733,0.10906255,93000.0,92991.0,0.1]
[1732096708953,0.107528,92999.0,92994.0,0.107533]
[1732096709401,0.10906255,93000.0,92991.0,0.1]
[1732096709639,0.107528,92999.0,92994.0,0.107532]
[1732096710131,0.10906255,93000.0,92995.0,0.107531]
[1732096710593,0.10906255,93000.0,92995.0,0.107532]
[1732096710837,0.0017104,93012.0,92997.0,0.12412312]
[1732096711087,0.0017104,93012.0,93011.0,0.107514]
[1732096714634,0.0017104,93012.0,93011.0,0.10966398]
[1732096714851,0.0017104,93012.0,93011.0,0.107514]
[1732096715383,0.002,93011.0,92995.0,0.03543119]
[1732096715599,0.0017104,93012.0,92995.0,0.03543119]
[1732096715600,0.0017104,93012.0,93007.0,0.107517]
[1732096715808,0.0017104,93012.0,93009.0,0.107515]
[1732096716020,0.0017104,93012.0,93011.0,0.107514]
[1732096718503,0.0017104,93012.0,93009.0,0.107515]
[1732096718719,0.0017104,93012.0,93007.0,0.107518]
[1732096718937,0.1092234,93012.0,93007.0,0.107518]
[1732096719169,0.0017104,93012.0,93004.0,0.107521]
[1732096719386,0.0017104,93012.0,92994.0,0.107532]
[1732096719606,0.0017104,93012.0,92959.0,0.107573]
[1732096719607,0.002,93010.0,92998.0,0.107528]
[1732096719823,0.117518,93008.0,93002.0,0.107523]
[1732096720054,0.117518,93008.0,93003.0,0.107523]
[1732096720263,0.01,93008.0,93003.0,0.107523]
[1732096720477,0.01,93008.0,93007.0,0.107518]
[1732096720965,0.0017104,93012.0,93007.0,0.107518]
[1732096721192,0.01,93008.0,93007.0,0.10966819]
[1732096721437,0.01,93008.0,92998.0,0.01]
[1732096721438,0.0017104,93012.0,92998.0,0.01]
[1732096721665,0.0017104,93012.0,93011.0,0.107514]
[1732096721897,0.0017104,93012.0,93011.0,0.10966406]
[1732096722335,0.0017104,93012.0,93011.0,0.32657655]
[1732096723289,0.0017104,93012.0,93011.0,0.46613377]
[1732096725281,4e-07,93012.0,93011.0,0.61783279]
[1732096725497,0.001663,93039.0,93038.0,0.207482]
[1732096725741,0.001663,93039.0,93038.0,0.20963127]
[1732096725949,0.001663,93039.0,93038.0,0.21963127]
[1732096726202,0.001663,93039.0,93038.0,0.217482]
[1732096727963,0.001663,93039.0,93032.0,0.1]
[1732096728191,0.001663,93039.0,93038.0,0.207482]
[1732096729803,0.001663,93039.0,93038.0,0.20638254]
[1732096730943,0.001663,93039.0,93038.0,0.1]
[1732096731418,0.001663,93039.0,93038.0,0.207482]
[1732096732126,0.001663,93039.0,93000.0,0.107525]
[1732096732127,0.001663,93039.0,93035.0,0.107485]
[1732096732346,0.001663,93039.0,93037.0,0.107483]
[1732096733252,0.001663,93039.0,93035.0,0.107485]
[1732096733479,0.001663,93039.0,93036.0,0.107484]
[1732096733939,0.001663,93039.0,93035.0,0.107485]
[1732096734161,0.001663,93039.0,93037.0,0.107484]
[1732096734388,0.0855,93044.0,93037.0,0.107484]
[1732096734618,0.107478,93042.0,93037.0,0.107484]
[1732096734847,0.01991096,93041.0,93037.0,0.107484]
[1732096735353,0.01991094,93040.0,93037.0,0.107484]
[1732096735568,0.01991094,93039.0,93037.0,0.107484]
[1732096735798,0.107478,93042.0,93037.0,0.107484]
[1732096736028,0.01991256,93041.0,93035.0,0.107485]
[1732096736248,0.01991256,93040.0,93035.0,0.107485]
[1732096736480,0.01991256,93039.0,93036.0,0.107484]
[1732096736722,0.01991256,93038.0,93037.0,0.107484]
[1732096737411,0.01,93043.0,93035.0,0.107485]
[1732096737628,0.01991895,93042.0,93037.0,0.107483]
[1732096737881,0.01991895,93041.0,93026.0,0.214992]
[1732096738102,0.01,93043.0,93024.0,0.11]
[1732096738103,0.0017094,93039.0,93038.0,0.107482]
[1732096738324,0.02162835,93039.0,93038.0,0.107482]
[1732096739684,0.02362835,93039.0,93038.0,0.107482]
[1732096739909,0.02162835,93039.0,93038.0,0.107482]
[1732096740181,0.01,93031.0,93015.0,0.107508]
[1732096740418,0.01,93031.0,93029.0,0.107493]
[1732096740629,0.01,93031.0,93024.0,0.00214973]
[1732096740630,0.05181244,93030.0,93024.0,0.00214973]
[1732096740856,0.01,93031.0,93011.0,0.0108547]
[1732096740857,0.05181244,93029.0,93011.0,0.0108547]
[1732096741080,0.05181244,93029.0,93028.0,0.107494]
[1732096741310,0.01,93031.0,93030.0,0.107492]
[1732096741539,0.07524515,93031.0,93030.0,0.107492]
[1732096742031,0.07524515,93031.0,93028.0,0.107494]
[1732096742271,0.06524515,93030.0,93029.0,0.107493]
[1732096743162,0.06524515,93030.0,93027.0,0.107495]
[1732096743390,0.14694515,93029.0,93017.0,0.1]
[1732096743613,0.06524515,93028.0,93025.0,0.107496]
[1732096744080,0.06524515,93027.0,93025.0,0.214993]
[1732096744319,0.06524515,93027.0,93025.0,0.107496]
[1732096744551,0.0917,93029.0,93025.0,0.107496]
[1732096744552,0.0917,93029.0,93026.0,0.107496]
[1732096744769,0.0917,93029.0,93025.0,0.107496]
[1732096744770,0.06525631,93028.0,93025.0,0.107496]
[1732096744994,0.0917,93029.0,93025.0,0.107496]
[1732096745214,0.0917,93029.0,93028.0,0.107494]
[1732096745439,0.15696231,93029.0,93028.0,0.107494]
[1732096746569,0.07526231,93029.0,93028.0,0.107494]
[1732096746840,0.05184301,93029.0,93022.0,0.01]
[1732096747091,0.01,93034.0,93028.0,0.107494]
[1732096747319,0.01,93035.0,93034.0,0.107487]
[1732096747566,0.01,93036.0,93035.0,0.107486]
[1732096747813,0.06186085,93036.0,93035.0,0.107486]
[1732096748264,0.06186054,93036.0,93035.0,0.107486]
[1732096748512,0.05186054,93036.0,93035.0,0.107486]
[1732096748735,0.05186054,93036.0,93035.0,0.10963555]
[1732096749417,0.05186054,93036.0,93035.0,0.107486]
[1732096750129,0.02994636,93036.0,93035.0,0.107486]
[1732096752751,0.01994636,93036.0,93035.0,0.107486]
[1732096752997,0.01994636,93036.0,93035.0,0.10963545]
[1732096753242,0.01994636,93036.0,93035.0,0.22654855]
[1732096753459,0.0017094,93039.0,93037.0,0.01]
[1732096753697,0.0017094,93039.0,93038.0,0.107482]
[1732096753940,0.02140074,93039.0,93038.0,0.107482]
[1732096754635,0.00142455,93039.0,93038.0,0.107482]
[1732096754845,0.0214007,93039.0,93038.0,0.107482]
[1732096755299,0.00142455,93039.0,93038.0,0.107482]
[1732096755733,0.02139944,93039.0,93038.0,0.107482]
[1732096757499,0.00142455,93039.0,93038.0,0.107482]
[1732096757716,0.00142455,93039.0,93038.0,0.10963138]
[1732096757934,0.02140388,93039.0,93038.0,0.10963138]
[1732096758169,0.02140388,93039.0,93038.0,0.107482]
[1732096758809,0.02118181,93039.0,93038.0,0.107482]
[1732096759260,0.00120248,93039.0,93033.0,0.107488]
[1732096759523,0.00120248,93039.0,93038.0,0.107482]
[1732096763869,0.00120248,93039.0,93038.0,0.1083367]
[1732096765926,0.00120248,93039.0,93038.0,0.11048595]
[1732096766554,0.00120248,93039.0,93038.0,0.14700266]
[1732096766766,0.00120248,93039.0,93038.0,0.15700266]
[1732096771876,0.00120248,93039.0,93038.0,0.26606521]
[1732096772085,0.03610942,93061.0,93038.0,0.26606521]
[1732096772086,0.00214972,93069.0,93058.0,0.01]
[1732096772339,0.1786112,93071.0,93058.0,0.01]
[1732096772340,0.1786112,93071.0,93058.0,0.21577555]
[1732096772737,0.01,93069.0,93058.0,0.21577555]
[1732096772970,0.01,93069.0,93058.0,0.21792426]
[1732096773627,0.01,93069.0,93058.0,0.22283461]
[1732096773837,0.01,93069.0,93058.0,0.2206859]
[1732096774254,0.01,93070.0,93058.0,0.2206859]
[1732096775180,0.1786112,93071.0,93058.0,0.2206859]
[1732096775181,0.1017112,93071.0,93058.0,0.2206859]
[1732096775845,0.1017112,93071.0,93058.0,0.04978415]
[1732096776061,0.1017112,93071.0,93058.0,0.14864582]
[1732096777597,0.1017112,93071.0,93058.0,0.28468587]
[1732096777809,0.1017112,93071.0,93058.0,0.2825372]
[1732096780739,0.1017112,93071.0,93058.0,0.2824768]
[1732096782916,0.1017112,93071.0,93058.0,0.27756645]
[1732096783407,0.0477,93063.0,93058.0,0.13275305]
[1732096783647,0.0818112,93059.0,93058.0,0.13275305]
[1732096784584,0.0818112,93059.0,93058.0,0.1210347]
[1732096784855,0.0818112,93059.0,93058.0,0.08499465]
[1732096789428,0.0017112,93059.0,93058.0,0.08714367]
[1732096790312,0.0017112,93059.0,93058.0,0.19620622]
[1732096792790,0.0017112,93059.0,93058.0,0.1940572]
[1732096793885,0.0017112,93059.0,93058.0,0.08499465]
[1732096794065,0.0790112,93059.0,93058.0,0.08499465]
[1732096794531,0.1255112,93059.0,93058.0,0.08499465]
[1732096796816,0.1255112,93059.0,93055.0,0.096716]
[1732096796817,0.033,93058.0,93055.0,0.096716]
[1732096797065,0.01,93054.0,93052.0,0.096719]
[1732096797292,0.04296623,93053.0,93052.0,0.096719]
[1732096798188,0.04296623,93053.0,93049.0,0.096722]
[1732096798415,0.04296623,93053.0,93047.0,0.096724]
[1732096798416,0.0459,93050.0,93047.0,0.096724]
[1732096798644,0.04296623,93049.0,93048.0,0.096724]
[1732096799171,0.04296623,93049.0,93042.0,0.09673]
[1732096799172,0.13316623,93049.0,93042.0,0.09673]
[1732096799397,0.033,93047.0,93046.0,0.096726]
[1732096799628,0.05296623,93047.0,93046.0,0.096726]
[1732096800312,0.18126623,93047.0,93046.0,0.096726]
[1732096800966,0.02997432,93047.0,93046.0,0.22299848]
[1732096801205,0.0017112,93059.0,93052.0,0.09672]
[1732096801206,0.0769,93053.0,93052.0,0.09672]
[1732096801685,0.0555,93056.0,93055.0,0.096716]
[1732096802160,0.01,93056.0,93055.0,0.096716]
[1732096802394,0.01,93056.0,93055.0,0.09886504]
[1732096802628,0.01,93056.0,93055.0,0.096716]
[1732096803536,0.02998019,93056.0,93055.0,0.096716]
[1732096804236,0.07678019,93056.0,93055.0,0.096716]
[1732096804899,0.07678019,93056.0,93053.0,0.096719]
[1732096805129,0.01,93054.0,93053.0,0.096719]
[1732096805392,0.02998019,93054.0,93053.0,0.096719]
[1732096806112,0.02998019,93054.0,93050.0,0.096722]
[1732096806113,0.01,93051.0,93050.0,0.096722]
[1732096806345,0.02997402,93051.0,93050.0,0.096722]
[1732096807063,0.002,93050.0,93049.0,0.096723]
[1732096807279,0.01,93051.0,93050.0,0.096722]
[1732096807765,0.02996926,93051.0,93050.0,0.096722]
[1732096808888,0.01996926,93051.0,93050.0,0.096722]
[1732096809133,0.0017112,93059.0,93058.0,0.096713]
[1732096809360,0.0017112,93059.0,93058.0,0.33204745]
[1732096809588,0.0017112,93059.0,93058.0,0.32989867]
[1732096811637,0.0017112,93059.0,93058.0,0.33075317]
[1732096813268,0.0017112,93059.0,93058.0,0.43075317]
[1732096814180,0.0017112,93059.0,93058.0,0.46666695]
[1732096814410,2e-07,93059.0,93058.0,0.46666695]
[1732096814651,2e-07,93059.0,93058.0,0.49749747]
[1732096815339,2e-07,93059.0,93058.0,0.56989747]
[1732096815833,2e-07,93059.0,93058.0,0.5746648]
[1732096816513,2e-07,93059.0,93058.0,0.78437202]
[1732096816755,2e-07,93059.0,93058.0,0.54383428]
[1732096816990,2e-07,93059.0,93058.0,0.57465885]
[1732096819697,2e-07,93059.0,93058.0,0.56989152]
[1732096820640,2e-07,93059.0,93058.0,0.85838209]
[1732096822089,2e-07,93059.0,93058.0,0.78598209]
[1732096822369,2e-07,93059.0,93058.0,0.49749152]
[1732096822813,2e-07,93059.0,93058.0,0.46666695]
[1732096823037,2e-07,93059.0,93058.0,0.70703749]
[1732096823263,2e-07,93059.0,93058.0,0.46666695]
[1732096823483,2e-07,93059.0,93058.0,0.70703656]
[1732096823702,2e-07,93059.0,93058.0,0.46666695]
[1732096823907,2e-07,93059.0,93058.0,0.70703232]
[1732096824354,2e-07,93059.0,93058.0,0.46666695]
[1732096824785,2e-07,93059.0,93058.0,0.49745332]
[1732096829426,0.1010114,93071.0,93070.0,0.096701]
[1732096829634,0.1010114,93071.0,93070.0,0.42988667]
[1732096831902,0.1010114,93071.0,93070.0,0.32082412]
[1732096832121,0.1010114,93071.0,93070.0,0.3558802]
[1732096834302,0.1010114,93071.0,93070.0,0.23175708]
[1732096834514,0.2247114,93071.0,93070.0,0.23175708]
[1732096834936,0.2247114,93071.0,93070.0,0.096701]
[1732096835349,0.24467295,93071.0,93070.0,0.096701]
[1732096835563,0.25467295,93071.0,93070.0,0.096701]
[1732096835791,0.25467245,93071.0,93070.0,0.096701]
[1732096838372,0.28666104,93071.0,93070.0,0.096701]
[1732096840133,0.28691361,93071.0,93070.0,0.096701]
[1732096840582,0.28691765,93071.0,93070.0,0.096701]
[1732096842111,0.29691765,93071.0,93070.0,0.096701]
[1732096842772,0.31032912,93071.0,93070.0,0.096701]
[1732096844309,0.29691765,93071.0,93070.0,0.096701]
[1732096844791,0.31032917,93071.0,93070.0,0.096701]
[1732096846172,0.33332917,93071.0,93070.0,0.0008552]
[1732096846418,0.1129,93059.0,93055.0,0.0975705]
[1732096846644,0.22682007,93059.0,93055.0,0.0008545]
[1732096846886,0.22682007,93059.0,93056.0,0.096715]
[1732096846887,0.23682049,93059.0,93056.0,0.096715]
[1732096847110,0.22682049,93059.0,93055.0,0.0008545]
[1732096847538,0.22682049,93059.0,93058.0,0.0975675]
[1732096847776,0.21340625,93059.0,93058.0,0.0975675]
[1732096848226,0.22682046,93059.0,93058.0,0.0975675]
[1732096848440,0.21340625,93059.0,93058.0,0.0975675]
[1732096849107,0.22682035,93059.0,93058.0,0.0975675]
[1732096849555,0.21340625,93059.0,93058.0,0.0975675]
[1732096849778,0.21340625,93059.0,93058.0,0.1022737]
[1732096849998,0.19466803,93059.0,93058.0,0.0055607]
[1732096850262,0.22675424,93059.0,93058.0,0.0055607]
[1732096850484,0.22875442,93059.0,93058.0,0.0055607]
[1732096850730,0.34621242,93059.0,93058.0,0.0008545]
[1732096851192,0.33741242,93059.0,93058.0,0.0008545]
[1732096851409,0.22795442,93059.0,93058.0,0.0008545]
[1732096851632,0.21795442,93059.0,93058.0,0.0008545]
[1732096852163,0.32741242,93059.0,93058.0,0.0008545]
[1732096852414,0.19375442,93059.0,93058.0,0.21142095]
[1732096852627,0.02005388,93059.0,93058.0,0.33075317]
[1732096852866,0.0012,93060.0,93058.0,0.33554333]
[1732096853136,0.0012,93060.0,93059.0,0.096712]
[1732096853345,0.02123528,93060.0,93059.0,0.09886007]
[1732096853553,0.02123528,93060.0,93059.0,0.096712]
[1732096853816,0.02123528,93060.0,93059.0,0.10150216]
[1732096854760,0.0012,93060.0,93059.0,0.10150216]
[1732096854985,0.0012,93060.0,93059.0,0.10365024]
[1732096855200,0.0012,93062.0,93061.0,0.09671]
[1732096855419,0.02123673,93062.0,93061.0,0.09885808]
[1732096855861,0.02123673,93062.0,93061.0,0.10364824]
[1732096857648,0.02123673,93062.0,93061.0,0.21271079]
[1732096857867,0.02123673,93062.0,93061.0,0.21356599]
[1732096858079,0.0012,93062.0,93061.0,0.21356599]
[1732096859411,0.02124553,93062.0,93061.0,0.21356599]
[1732096860118,0.0012,93062.0,93061.0,0.21356599]
[1732096860333,0.0012,93062.0,93061.0,0.10235536]
[1732096860553,0.12484816,93062.0,93061.0,0.0975652]
[1732096861216,0.20512862,93062.0,93061.0,0.0008552]
[1732096861410,0.32599727,93062.0,93061.0,0.0008552]
[1732096861627,0.44505982,93062.0,93061.0,0.0008552]
[1732096861841,0.19354227,93062.0,93061.0,0.0975652]
[1732096862696,0.18012862,93062.0,93061.0,0.0975652]
[1732096862910,0.1935421,93062.0,93061.0,0.0975652]